fUST/lending_fUST_20250315
["ID","MTS","AMOUNT","RATE_DAILY","PERIOD"]
[356150370,1741972233260,-262.30362313,8.219e-05,2]
[356150389,1741972237875,-237.69637687,8.219e-05,2]
[356150390,1741972237885,-500.0,8.219e-05,2]
[356150391,1741972237894,-186.89549086,8.219e-05,2]
[356150396,1741972240198,-313.10450914,8.219e-05,2]
[356150397,1741972240208,-500.0,8.219e-05,2]
[356150398,1741972240218,-530.57,8.219e-05,2]
[356150399,1741972240228,-500.0,8.219e-05,2]
[356150400,1741972240238,-500.0,8.219e-05,2]
[356150401,1741972240248,-500.0,8.219e-05,2]
[356150402,1741972240258,-500.0,8.219e-05,2]
[356150403,1741972240267,-500.0,8.219e-05,2]
[356150404,1741972240277,-500.0,8.219e-05,2]
[356150405,1741972240287,-573.08,8.219e-05,2]
[356150406,1741972240298,-500.0,8.219e-05,2]
[356150407,1741972240308,-500.0,8.219e-05,2]
[356150408,1741972240318,-500.0,8.219e-05,2]
[356150409,1741972240328,-500.0,8.219e-05,2]
[356150411,1741972240337,-512.13,8.219e-05,2]
[356150412,1741972240347,-557.93,8.219e-05,2]
[356150414,1741972240356,-500.0,8.219e-05,2]
[356150416,1741972240365,-639.31,8.219e-05,2]
[356150418,1741972240375,-569.46,8.219e-05,2]
[356150419,1741972240385,-500.0,8.219e-05,2]
[356150420,1741972240395,-565.67,8.219e-05,2]
[356150421,1741972240404,-520.22,8.219e-05,2]
[356150422,1741972240414,-284.68964257,8.219e-05,2]
[356150423,1741972240424,-1322.75,8.219e-05,2]
[356150424,1741972240435,-719.2,8.219e-05,2]
[356150425,1741972240445,-1423.41,8.219e-05,2]
[356150426,1741972240456,-923.25,8.219e-05,2]
[356150427,1741972240467,-1621.63,8.219e-05,2]
[356150428,1741972240477,-500.0,8.219e-05,2]
[356150429,1741972240487,-500.0,8.219e-05,2]
[356150430,1741972240497,-960.75,8.219e-05,2]
[356150431,1741972240506,-503.56,8.219e-05,2]
[356150432,1741972240515,-500.0,8.219e-05,2]
[356150433,1741972240525,-500.0,8.219e-05,2]
[356150434,1741972240535,-500.0,8.219e-05,2]
[356150435,1741972240545,-500.0,8.219e-05,2]
[356150436,1741972240555,-3788.18,8.219e-05,2]
[356150437,1741972240564,-690.79,8.219e-05,2]
[356150438,1741972240574,-500.0,8.219e-05,2]
[356150439,1741972240583,-500.0,8.219e-05,2]
[356150440,1741972240593,-6117.73,8.219e-05,2]
[356150441,1741972240603,-500.0,8.219e-05,2]
[356150442,1741972240613,-500.0,8.219e-05,2]
[356150443,1741972240623,-781.2,8.219e-05,2]
[356150444,1741972240633,-500.0,8.219e-05,2]
[356150445,1741972240642,-642.13,8.219e-05,2]
[356150446,1741972240652,-5085.98,8.219e-05,2]
[356150447,1741972240662,-1649.08,8.219e-05,2]
[356150448,1741972240672,-1211.73,8.219e-05,2]
[356150449,1741972240682,-500.0,8.219e-05,2]
[356150450,1741972240691,-558.68,8.219e-05,2]
[356150451,1741972240701,-500.0,8.219e-05,2]
[356150452,1741972240711,-1041.89,8.219e-05,2]
[356150453,1741972240721,-1245.34,8.219e-05,2]
[356150454,1741972240731,-500.0,8.219e-05,2]
[356150455,1741972240740,-1182.35,8.219e-05,2]
[356150456,1741972240750,-500.0,8.219e-05,2]
[356150457,1741972240760,-1400.25,8.219e-05,2]
[356150458,1741972240769,-500.0,8.219e-05,2]
[356150459,1741972240779,-500.0,8.219e-05,2]
[356150460,1741972240789,-807.21,8.219e-05,2]
[356150461,1741972240799,-500.0,8.219e-05,2]
[356150462,1741972240809,-571.17841558,8.219e-05,2]
[356150501,1741972246107,-665.29999995,8.219e-05,2]
[356150502,1741972246212,-931.724,8.219e-05,2]
[356150533,1741973190307,-242.18547723,8.218e-05,2]
[356150541,1741973277395,24900.0,7.443e-05,2]
[356150616,1741973432201,-257.81452277,8.218e-05,2]
[356150618,1741973432212,-322.99867375,8.218e-05,2]
[356150621,1741973432222,-242.18547723,8.218e-05,2]
[356150623,1741973432232,-300.0,8.218e-05,2]
[356150625,1741973432241,-500.0,8.219e-05,2]
[356150626,1741973432251,-500.0,8.219e-05,2]
[356150628,1741973432261,-500.0,8.219e-05,2]
[356150629,1741973432271,-500.0,8.219e-05,2]
[356150630,1741973432281,-499.0,8.219e-05,2]
[356150631,1741973432291,-500.0,8.219e-05,2]
[356150632,1741973432301,-500.0,8.219e-05,2]
[356150633,1741973432311,-500.0,8.219e-05,2]
[356150634,1741973432320,-508.57,8.219e-05,2]
[356150635,1741973432330,-500.0,8.219e-05,2]
[356150636,1741973432339,-505.68316821,8.219e-05,2]
[356150637,1741973432351,-500.0,8.219e-05,2]
[356150638,1741973432373,-772.25,8.219e-05,2]
[356150639,1741973432383,-500.0,8.219e-05,2]
[356150640,1741973432393,-507.82589342,8.219e-05,2]
[356150641,1741973432402,-500.0,8.219e-05,2]
[356150642,1741973432414,-500.0,8.219e-05,2]
[356150643,1741973432424,-500.0,8.219e-05,2]
[356150646,1741973432433,-112.70879712,8.219e-05,2]
[356150650,1741973432459,-405.64754188,8.219e-05,2]
[356150652,1741973432469,-500.0,8.219e-05,2]
[356150654,1741973432478,-500.0,8.219e-05,2]
[356150656,1741973432488,-507.60563906,8.219e-05,2]
[356150658,1741973432498,-500.0,8.219e-05,2]
[356150660,1741973432508,-505.41,8.219e-05,2]
[356150661,1741973432518,-395.62990542,8.219e-05,2]
[356150676,1741973437998,-104.37009458,8.219e-05,2]
[356150677,1741973438008,-406.72586714,8.219e-05,2]
[356150678,1741973438020,-93.27413286,8.219e-05,2]
[356150679,1741973438029,-501.70991608,8.219e-05,2]
[356150680,1741973438040,-14.95952548,8.219e-05,2]
[356150681,1741973438050,-500.0,8.219e-05,2]
[356150682,1741973438059,-500.0,8.219e-05,2]
[356150683,1741973438068,-500.0,8.219e-05,2]
[356150684,1741973438079,-1059.74,8.219e-05,2]
[356150685,1741973438088,-500.0,8.219e-05,2]
[356150686,1741973438097,-500.0,8.219e-05,2]
[356150687,1741973438107,-904.69,8.219e-05,2]
[356150688,1741973438116,-500.0,8.219e-05,2]
[356150689,1741973438126,-500.0,8.219e-05,2]
[356150690,1741973438137,-500.0,8.219e-05,2]
[356150691,1741973438147,-500.0,8.219e-05,2]
[356150692,1741973438157,-500.0,8.219e-05,2]
[356150693,1741973438166,-500.0,8.219e-05,2]
[356150694,1741973438175,-500.0,8.219e-05,2]
[356150695,1741973438185,-500.0,8.219e-05,2]
[356150696,1741973438194,-500.88,8.219e-05,2]
[356150697,1741973438203,-500.0,8.219e-05,2]
[356150698,1741973438213,-500.0,8.219e-05,2]
[356150699,1741973438223,-615.37,8.219e-05,2]
[356150700,1741973438232,-703.14,8.219e-05,2]
[356150701,1741973438242,-229.90670257,8.219e-05,2]
[356150702,1741973438296,-270.09329743,8.219e-05,2]
[356150703,1741973438305,-500.0,8.219e-05,2]
[356150704,1741973438315,-93.14409745,8.219e-05,2]
[356150705,1741973438326,-442.25590255,8.219e-05,2]
[356150706,1741973438336,-500.0,8.219e-05,2]
[356150707,1741973438345,-500.0,8.219e-05,2]
[356150708,1741973438354,-500.0,8.219e-05,2]
[356150709,1741973438364,-500.0,8.219e-05,2]
[356150710,1741973438373,-25.33393934,8.219e-05,2]
[356150711,1741973438385,-474.66606066,8.219e-05,2]
[356150712,1741973438395,-500.0,8.219e-05,2]
[356150713,1741973438404,-500.0,8.219e-05,2]
[356150714,1741973438414,-500.0,8.219e-05,2]
[356150715,1741973438423,-1129.3,8.219e-05,2]
[356150716,1741973438432,-500.0,8.219e-05,2]
[356150717,1741973438442,-500.0,8.219e-05,2]
[356150718,1741973438455,-766.6,8.219e-05,2]
[356150719,1741973438464,-1034.35,8.219e-05,2]
[356150720,1741973438474,-455.63108623,8.219e-05,2]
[356150721,1741973438485,-44.36891377,8.219e-05,2]
[356150722,1741973438496,-455.63108623,8.219e-05,2]
[356150723,1741973438512,-44.36891377,8.219e-05,2]
[356150724,1741973438523,-1022.19,8.219e-05,2]
[356150725,1741973438532,-500.0,8.219e-05,2]
[356150726,1741973438542,-344.89909288,8.219e-05,2]
[356150727,1741973438555,-315.37955986,8.219e-05,2]
[356150735,1741973440378,-184.62044014,8.219e-05,2]
[356150736,1741973440388,-500.0,8.219e-05,2]
[356150737,1741973440397,-500.0,8.219e-05,2]
[356150738,1741973440407,-500.0,8.219e-05,2]
[356150739,1741973440416,-573.57,8.219e-05,2]
[356150740,1741973440427,-500.0,8.219e-05,2]
[356150741,1741973440436,-591.02857737,8.219e-05,2]
[356150742,1741973440448,-602.14,8.219e-05,2]
[356150743,1741973440459,-517.74687955,8.219e-05,2]
[356150744,1741973440469,-500.0,8.219e-05,2]
[356150745,1741973440479,-508.47,8.219e-05,2]
[356150757,1741973440689,-559.4,8.219e-05,2]
[356150758,1741973440699,-71.02760897,8.219e-05,2]
[356150768,1741973446165,-484.26239103,8.219e-05,2]
[356150769,1741973446175,-520.9,8.219e-05,2]
[356150770,1741973446185,-232.56802892,8.219e-05,2]
[356150778,1741974359134,-300.0,8.217e-05,2]
[356150779,1741974359156,-500.0,8.218e-05,2]
[356150780,1741974359177,-199.71833426,8.218e-05,2]
[356150781,1741974359199,-500.0,8.218e-05,2]
[356150782,1741974359220,-500.0,8.218e-05,2]
[356150783,1741974359242,-434.0594245,8.218e-05,2]
[356150784,1741974359264,-492.78820842,8.218e-05,2]
[356150848,1741974632424,-3288.24000009,8.119e-05,2]
[356150850,1741974632434,-7.21179158,8.218e-05,2]
[356150852,1741974632444,-300.0,8.218e-05,2]
[356150853,1741974632454,-500.0,8.219e-05,2]
[356150854,1741974632463,-500.0,8.219e-05,2]
[356150855,1741974632473,-500.0,8.219e-05,2]
[356150856,1741974632484,-111.97337003,8.219e-05,2]
[356150857,1741974632585,-388.02662997,8.219e-05,2]
[356150858,1741974632595,-589.73,8.219e-05,2]
[356150859,1741974632604,-513.09,8.219e-05,2]
[356150860,1741974632613,-312.85980725,8.219e-05,2]
[356150862,1741974632623,-536.09,8.219e-05,2]
[356150864,1741974632632,-522.72354119,8.219e-05,2]
[356150866,1741974632641,-97.11896302,8.219e-05,2]
[356150868,1741974632653,-402.88103698,8.219e-05,2]
[356150870,1741974632662,-500.0,8.219e-05,2]
[356150872,1741974632672,-500.0,8.219e-05,2]
[356150875,1741974632681,-426.46263786,8.219e-05,2]
[356151001,1741974638376,-73.53736214,8.219e-05,2]
[356151002,1741974638386,-500.0,8.219e-05,2]
[356151003,1741974638396,-52.43961883,8.219e-05,2]
[356151033,1741974640681,-447.56038117,8.219e-05,2]
[356151035,1741974640691,-549.21,8.219e-05,2]
[356151037,1741974640702,-167.57315317,8.219e-05,2]
[356151042,1741974640738,-332.42684683,8.219e-05,2]
[356151044,1741974640748,-68.15428752,8.219e-05,2]
[356151046,1741974640760,-431.84571248,8.219e-05,2]
[356151048,1741974640770,-364.91689264,8.219e-05,2]
[356151344,1741974643694,-159.94422617,8.219e-05,2]
[356151346,1741974643705,-500.0,8.219e-05,2]
[356151348,1741974643715,-500.0,8.219e-05,2]
[356151350,1741974643725,-500.0,8.219e-05,2]
[356151352,1741974643734,-1015.58,8.219e-05,2]
[356151354,1741974643743,-467.2554633,8.219e-05,2]
[356151356,1741974643753,-500.0,8.219e-05,2]
[356151359,1741974643763,-500.0,8.219e-05,2]
[356151360,1741974643772,-500.0,8.219e-05,2]
[356151362,1741974643782,-645.23,8.219e-05,2]
[356151364,1741974643791,-500.0,8.219e-05,2]
[356151366,1741974643801,-866.99,8.219e-05,2]
[356151368,1741974643810,-500.0,8.219e-05,2]
[356151370,1741974643819,-500.0,8.219e-05,2]
[356151372,1741974643829,-500.0,8.219e-05,2]
[356151375,1741974643839,-395.55146878,8.219e-05,2]
[356151377,1741974643849,-500.0,8.219e-05,2]
[356151379,1741974643863,-500.0,8.219e-05,2]
[356151381,1741974643872,-500.0,8.219e-05,2]
[356151383,1741974643881,-520.66534353,8.219e-05,2]
[356151385,1741974643891,-500.0,8.219e-05,2]
[356151387,1741974643903,-531.09065085,8.219e-05,2]
[356151389,1741974643912,-500.0,8.219e-05,2]
[356151391,1741974643922,-500.0,8.219e-05,2]
[356151393,1741974643932,-37.74284737,8.219e-05,2]
[356151395,1741974643944,-470.39196067,8.219e-05,2]
[356151397,1741974643955,-383.05087879,8.219e-05,2]
[356151652,1741974646529,-116.94912121,8.219e-05,2]
[356151654,1741974646539,-500.0,8.219e-05,2]
[356151656,1741974646549,-500.0,8.219e-05,2]
[356151658,1741974646559,-500.0,8.219e-05,2]
[356151660,1741974646568,-500.0,8.219e-05,2]
[356151662,1741974646577,-500.0,8.219e-05,2]
[356151664,1741974646586,-42.84087879,8.219e-05,2]
[356151666,1741974646598,-471.65303654,8.219e-05,2]
[356151668,1741974646607,-156.79696355,8.219e-05,2]
[356151670,1741974646619,-517.04303645,8.219e-05,2]
[356151672,1741974646628,-420.38294396,8.219e-05,2]
[356152216,1741974841783,5000.0,8e-05,2]
[356152217,1741974857664,5000.0,8e-05,2]
[356152218,1741974918796,957.1256024,7.339e-05,2]
[356152219,1741975018677,42869.4403702,7.246e-05,2]
[356152220,1741975128494,24900.0,7.397e-05,2]
[356152221,1741975533146,-300.0,8.117e-05,2]
[356152222,1741975533168,-143.3887611,8.118e-05,2]
[356152223,1741975556240,-356.6112389,8.118e-05,2]
[356152224,1741975556262,-211.17693663,8.118e-05,2]
[356152225,1741975556283,-500.0,8.118e-05,2]
[356152226,1741975556304,-59.70879778,8.118e-05,2]
[356152270,1741975832526,-564.31664739,8.118e-05,2]
[356152272,1741975832537,-214.89549161,8.118e-05,2]
[356152274,1741975832548,-537.11417954,8.118e-05,2]
[356152276,1741975832558,-201.16539545,8.119e-05,2]
[356152280,1741975832585,-3827.00317772,8.119e-05,2]
[356152282,1741975832599,-1962.025,8.119e-05,2]
[356152284,1741975832612,-60843.77129899,8.119e-05,2]
[356152286,1741975832621,-306.14303335,8.218e-05,2]
[356152288,1741975832632,-5353.62429461,8.219e-05,2]
[356152290,1741975832642,-500.0,8.219e-05,2]
[356152292,1741975832652,-618.35,8.219e-05,2]
[356152294,1741975832662,-500.0,8.219e-05,2]
[356152296,1741975832672,-500.0,8.219e-05,2]
[356152298,1741975832682,-500.0,8.219e-05,2]
[356152300,1741975832692,-500.0,8.219e-05,2]
[356152302,1741975832702,-500.0,8.219e-05,2]
[356152304,1741975832712,-552.56,8.219e-05,2]
[356152306,1741975832722,-500.0,8.219e-05,2]
[356152308,1741975832731,-500.0,8.219e-05,2]
[356152311,1741975832742,-540.67,8.219e-05,2]
[356152313,1741975832752,-500.0,8.219e-05,2]
[356152315,1741975832762,-500.0,8.219e-05,2]
[356152317,1741975832771,-500.0,8.219e-05,2]
[356152319,1741975832782,-500.0,8.219e-05,2]
[356152321,1741975832791,-500.0,8.219e-05,2]
[356152323,1741975832801,-500.0,8.219e-05,2]
[356152325,1741975832811,-500.0,8.219e-05,2]
[356152327,1741975832821,-534.61,8.219e-05,2]
[356152330,1741975832831,-246.66705773,8.219e-05,2]
[356152332,1741975832841,-500.0,8.219e-05,2]
[356152334,1741975832851,-241.29310914,8.219e-05,2]
[356152335,1741975832860,-656.98,8.219e-05,2]
[356152338,1741975832870,-500.0,8.219e-05,2]
[356152339,1741975832880,-500.0,8.219e-05,2]
[356152341,1741975832889,-500.0,8.219e-05,2]
[356152343,1741975832899,-500.0,8.219e-05,2]
[356152346,1741975832909,-500.0,8.219e-05,2]
[356152347,1741975832918,-500.0,8.219e-05,2]
[356152350,1741975832928,-500.0,8.219e-05,2]
[356152352,1741975832938,-830.87,8.219e-05,2]
[356152354,1741975832947,-500.0,8.219e-05,2]
[356152356,1741975832957,-231.53588113,8.219e-05,2]
[356152357,1741975832966,-500.0,8.219e-05,2]
[356152359,1741975832975,-500.0,8.219e-05,2]
[356152361,1741975832986,-500.0,8.219e-05,2]
[356152364,1741975833000,-500.0,8.219e-05,2]
[356152366,1741975833010,-500.0,8.219e-05,2]
[356152368,1741975833020,-500.0,8.219e-05,2]
[356152370,1741975833030,-645.76,8.219e-05,2]
[356152372,1741975833041,-500.0,8.219e-05,2]
[356152374,1741975833051,-500.0,8.219e-05,2]
[356152376,1741975833061,-500.0,8.219e-05,2]
[356152378,1741975833071,-500.0,8.219e-05,2]
[356152380,1741975833081,-500.0,8.219e-05,2]
[356152382,1741975833092,-500.0,8.219e-05,2]
[356152384,1741975833101,-500.0,8.219e-05,2]
[356152386,1741975833111,-500.0,8.219e-05,2]
[356152388,1741975833121,-1082.24,8.219e-05,2]
[356152390,1741975833131,-740.07,8.219e-05,2]
[356152392,1741975833142,-500.0,8.219e-05,2]
[356152394,1741975833152,-618.43774114,8.219e-05,2]
[356152396,1741975833162,-500.0,8.219e-05,2]
[356152398,1741975833172,-500.0,8.219e-05,2]
[356152400,1741975833182,-991.25,8.219e-05,2]
[356152402,1741975833192,-979.6,8.219e-05,2]
[356152404,1741975833202,-500.0,8.219e-05,2]
[356152406,1741975833212,-500.0,8.219e-05,2]
[356152408,1741975833223,-500.0,8.219e-05,2]
[356152410,1741975833234,-500.0,8.219e-05,2]
[356152412,1741975833246,-500.0,8.219e-05,2]
[356152414,1741975833257,-500.0,8.219e-05,2]
[356152416,1741975833267,-500.0,8.219e-05,2]
[356152418,1741975833279,-500.0,8.219e-05,2]
[356152420,1741975833289,-500.0,8.219e-05,2]
[356152423,1741975833299,-500.0,8.219e-05,2]
[356152425,1741975833309,-500.0,8.219e-05,2]
[356152427,1741975833320,-500.0,8.219e-05,2]
[356152429,1741975833330,-173.70323486,8.219e-05,2]
[356152431,1741975833340,-549.67,8.219e-05,2]
[356152433,1741975833350,-532.16,8.219e-05,2]
[356152435,1741975833360,-803.5,8.219e-05,2]
[356152437,1741975833372,-577.05,8.219e-05,2]
[356152439,1741975833382,-627.15,8.219e-05,2]
[356152441,1741975833392,-500.0,8.219e-05,2]
[356152443,1741975833402,-500.0,8.219e-05,2]
[356152445,1741975833412,-500.0,8.219e-05,2]
[356152447,1741975833422,-952.5,8.219e-05,2]
[356152449,1741975833432,-591.65102836,8.219e-05,2]
[356152451,1741975833445,-500.0,8.219e-05,2]
[356152453,1741975833456,-500.0,8.219e-05,2]
[356152455,1741975833467,-500.0,8.219e-05,2]
[356152457,1741975833477,-500.0,8.219e-05,2]
[356152459,1741975833488,-500.0,8.219e-05,2]
[356152461,1741975833498,-400.58868143,8.219e-05,2]
[356152463,1741975833508,-500.0,8.219e-05,2]
[356152465,1741975833518,-500.0,8.219e-05,2]
[356152467,1741975833529,-500.0,8.219e-05,2]
[356152469,1741975833539,-625.18,8.219e-05,2]
[356152471,1741975833550,-648.40624607,8.219e-05,2]
[356152473,1741975833561,-549.21,8.219e-05,2]
[356152475,1741975833572,-500.0,8.219e-05,2]
[356152477,1741975833581,-500.0,8.219e-05,2]
[356152479,1741975833593,-510.72074493,8.219e-05,2]
[356152481,1741975833603,-534.68,8.219e-05,2]
[356152483,1741975833614,-500.0,8.219e-05,2]
[356152485,1741975833624,-545.73,8.219e-05,2]
[356152488,1741975833634,-500.0,8.219e-05,2]
[356152489,1741975833644,-1267.63,8.219e-05,2]
[356152491,1741975833655,-500.0,8.219e-05,2]
[356152494,1741975833665,-543.56,8.219e-05,2]
[356152496,1741975833675,-689.23,8.219e-05,2]
[356152498,1741975833685,-181.71418142,8.219e-05,2]
[356152500,1741975833695,-1554.07,8.219e-05,2]
[356152502,1741975833704,-500.0,8.219e-05,2]
[356152504,1741975833715,-500.0,8.219e-05,2]
[356152506,1741975833725,-500.0,8.219e-05,2]
[356152508,1741975833735,-500.0,8.219e-05,2]
[356152510,1741975833745,-884.78,8.219e-05,2]
[356152512,1741975833756,-1364.1,8.219e-05,2]
[356152514,1741975833767,-500.0,8.219e-05,2]
[356152516,1741975833777,-920.72,8.219e-05,2]
[356152518,1741975833787,-22796.47,8.219e-05,2]
[356152520,1741975833797,-3646.71,8.219e-05,2]
[356152522,1741975833807,-500.0,8.219e-05,2]
[356152524,1741975833817,-565.16,8.219e-05,2]
[356152526,1741975833827,-500.0,8.219e-05,2]
[356152528,1741975833837,-500.0,8.219e-05,2]
[356152530,1741975833847,-500.0,8.219e-05,2]
[356152532,1741975833858,-1580.37,8.219e-05,2]
[356152534,1741975833868,-748.65,8.219e-05,2]
[356152536,1741975833878,-500.0,8.219e-05,2]
[356152538,1741975833889,-500.0,8.219e-05,2]
[356152540,1741975833899,-5862.83,8.219e-05,2]
[356152542,1741975833910,-662.01,8.219e-05,2]
[356152544,1741975833920,-998.48,8.219e-05,2]
[356152546,1741975833930,-500.0,8.219e-05,2]
[356152548,1741975833940,-500.0,8.219e-05,2]
[356152550,1741975833950,-500.0,8.219e-05,2]
[356152553,1741975833961,-4874.06,8.219e-05,2]
[356152555,1741975833971,-500.0,8.219e-05,2]
[356152556,1741975833981,-582.26,8.219e-05,2]
[356152558,1741975833992,-404.87116572,8.219e-05,2]
[356152560,1741975834001,-500.0,8.219e-05,2]
[356152562,1741975834011,-1161.24,8.219e-05,2]
[356152564,1741975834021,-15619.31,8.219e-05,2]
[356152566,1741975834031,-1226.21,8.219e-05,2]
[356152568,1741975834041,-560.16,8.219e-05,2]
[356152570,1741975834051,-815.24,8.219e-05,2]
[356152573,1741975834061,-1133.09,8.219e-05,2]
[356152575,1741975834072,-500.0,8.219e-05,2]
[356152577,1741975834082,-1387.23,8.219e-05,2]
[356152579,1741975834092,-500.0,8.219e-05,2]
[356152581,1741975834102,-561.65,8.219e-05,2]
[356152583,1741975834112,-500.0,8.219e-05,2]
[356152585,1741975834122,-2092.83,8.219e-05,2]
[356152587,1741975834132,-500.0,8.219e-05,2]
[356152589,1741975834142,-500.0,8.219e-05,2]
[356152591,1741975834152,-1382.3,8.219e-05,2]
[356152593,1741975834162,-500.0,8.219e-05,2]
[356152595,1741975834173,-11310.14,8.219e-05,2]
[356152597,1741975834182,-16529.9,8.219e-05,2]
[356152599,1741975834193,-4743.8,8.219e-05,2]
[356152601,1741975834204,-8370.44,8.219e-05,2]
[356152603,1741975834214,-500.0,8.219e-05,2]
[356152605,1741975834224,-20068.88010942,8.219e-05,2]
[356152611,1741975834274,-151.22989058,8.219e-05,2]
[356152613,1741975834286,-1162.19,8.219e-05,2]
[356152615,1741975834295,-612.21252568,8.219e-05,2]
[356152617,1741975834306,-1619.55,8.219e-05,2]
[356152619,1741975834317,-500.0,8.219e-05,2]
[356152621,1741975834328,-832.56,8.219e-05,2]
[356152623,1741975834339,-513.76,8.219e-05,2]
[356152625,1741975834349,-500.0,8.219e-05,2]
[356152627,1741975834360,-681.94,8.219e-05,2]
[356152629,1741975834370,-500.0,8.219e-05,2]
[356152631,1741975834382,-1789.62867426,8.219e-05,2]
[356152633,1741975834395,-302.0,8.219e-05,2]
[356153084,1741975843637,-3713.24132574,8.219e-05,2]
[356153086,1741975843647,-500.0,8.219e-05,2]
[356153088,1741975843656,-500.0,8.219e-05,2]
[356153089,1741975843666,-500.0,8.219e-05,2]
[356153090,1741975843675,-500.0,8.219e-05,2]
[356153091,1741975843685,-3320.08,8.219e-05,2]
[356153092,1741975843695,-567.84,8.219e-05,2]
[356153093,1741975843704,-446.35931558,8.219e-05,2]
[356153094,1741975843714,-500.0,8.219e-05,2]
[356153095,1741975843723,-4376.3,8.219e-05,2]
[356153096,1741975843732,-500.0,8.219e-05,2]
[356153097,1741975843741,-500.0,8.219e-05,2]
[356153098,1741975843752,-1440.93,8.219e-05,2]
[356153099,1741975843761,-685.36,8.219e-05,2]
[356153100,1741975843771,-17871.28,8.219e-05,2]
[356153101,1741975843780,-7677.79,8.219e-05,2]
[356153102,1741975843790,-1506.24,8.219e-05,2]
[356153104,1741975843799,-500.0,8.219e-05,2]
[356153106,1741975843809,-500.0,8.219e-05,2]
[356153107,1741975843819,-500.0,8.219e-05,2]
[356153108,1741975843828,-500.0,8.219e-05,2]
[356153109,1741975843837,-2792.83,8.219e-05,2]
[356153110,1741975843846,-500.0,8.219e-05,2]
[356153111,1741975843856,-1017.02,8.219e-05,2]
[356153112,1741975843865,-500.0,8.219e-05,2]
[356153113,1741975843875,-270.04582499,8.219e-05,2]
[356153155,1741975846594,-569.77417501,8.219e-05,2]
[356153157,1741975846608,-7925.72054977,8.219e-05,2]
[356153285,1741975862904,35000.0,8e-05,2]
[356153286,1741976203787,24900.0,7.397e-05,2]
[356153287,1741976626559,1996.36137907,8e-05,2]
[356153288,1741976634522,2063.81787791,8e-05,2]
[356153290,1741976818300,-242.18547723,8.118e-05,2]
[356153341,1741977032761,-500.0,8.118e-05,2]
[356153342,1741977032771,-583.57048311,8.118e-05,2]
[356153343,1741977032781,-300.0,8.118e-05,2]
[356153344,1741977032791,-111766.68894325,8.119e-05,2]
[356153345,1741977032801,-181.71418142,8.2e-05,2]
[356153346,1741977032811,-150.0,8.2e-05,2]
[356153347,1741977032820,-201.0,8.2e-05,2]
[356153348,1741977032830,-401.0,8.2e-05,2]
[356153349,1741977032839,-802.0,8.2e-05,2]
[356153350,1741977032849,-1605.0,8.2e-05,2]
[356153351,1741977032858,-2027.0,8.2e-05,2]
[356153352,1741977032868,-3124.0,8.2e-05,2]
[356153353,1741977032877,-3210.0,8.2e-05,2]
[356153354,1741977032887,-4959.0,8.2e-05,2]
[356153355,1741977032897,-255.11919446,8.218e-05,2]
[356153356,1741977032906,-518.14821111,8.219e-05,2]
[356153357,1741977032915,-500.0,8.219e-05,2]
[356153358,1741977032925,-500.0,8.219e-05,2]
[356153359,1741977032934,-500.92861038,8.219e-05,2]
[356153360,1741977032944,-500.0,8.219e-05,2]
[356153361,1741977032953,-504.00068672,8.219e-05,2]
[356153362,1741977032963,-501.62871989,8.219e-05,2]
[356153363,1741977032973,-500.0,8.219e-05,2]
[356153364,1741977032982,-500.0,8.219e-05,2]
[356153365,1741977032992,-502.786243,8.219e-05,2]
[356153366,1741977033002,-510.11662878,8.219e-05,2]
[356153367,1741977033011,-502.05708543,8.219e-05,2]
[356153368,1741977033022,-503.65798853,8.219e-05,2]
[356153369,1741977033031,-501.1935147,8.219e-05,2]
[356153370,1741977033041,-502.69450496,8.219e-05,2]
[356153371,1741977033051,-500.0,8.219e-05,2]
[356153372,1741977033060,-504.50102987,8.219e-05,2]
[356153373,1741977033070,-502.24513576,8.219e-05,2]
[356153374,1741977033080,-505.3001398,8.219e-05,2]
[356153375,1741977033090,-505.07885002,8.219e-05,2]
[356153376,1741977033102,-503.4026585,8.219e-05,2]
[356153377,1741977033112,-500.0,8.219e-05,2]